Cogmind - Beta 16.1 @@@ ROGUE MODE // 2026.06.17 @ 20:57:15 Player: Megaknight51 Result: Self-destructed Performance ------------- Evolutions (6) 3000 Regions Visited (12) 2400 Robots Destroyed (92) 460 Value Destroyed (3660) 3660 Prototype IDs (25) 500 Alien Tech Used (0) 0 Bonus (3329) 3329 TOTAL SCORE: 13349 Bonus ------- Follower Combat Kills 441 Registered with UFD 300 Met Warlord at Base 500 MAIN.C Attacked Warlord 500 Warlord Defense Kills 1588 Cogmind --------- Core Integrity 969/1150 Matter 247/300 Energy 258/310 System Corruption 5% Temperature Warning (370) Movement Flying (109) Ox1 Location -4/Factory Parts ------- > --- POWER (1) -------- Reinforced Fission Core > --- PROPULSION (5) --- Cooled Nuclear Pulse Thruster Impulse Thruster > --- UTILITY (6) ------ Small Storage Unit Advanced Weight Redist. System Makeshift Hacking Suite Makeshift Hacking Suite Improved Hacking Suite Makeshift System Shield > --- WEAPON (7) ------- Variable Charge Gun > --- INVENTORY (8) ---- Advanced Power Amplifier Advanced Trap Scanner Makeshift Hacking Suite Makeshift System Shield Advanced Datajack Remote Datajack Plasma Cutter Power Maul Peak State ------------ > --- POWER ------------ Enhanced Fission Core Enhanced Fission Core > --- PROPULSION ------- Medium Treads Medium Treads Improved Medium Treads Armored Wheel > --- UTILITY ---------- Advanced Heat Sink Advanced Heat Sink Improved Coolant Injector Huge Storage Unit Spectral Analyzer > --- WEAPON ----------- Wave Gun Enhanced Force Rifle Enhanced Force Rifle Enhanced Force Rifle Powered Cannon Hypervelocity Coil Gun > --- INVENTORY -------- Light Angular Momentum Engine Light Fission Core Enhanced Fission Core Armored Leg Xenon Bombardment Thruster Advanced Heat Sink Improved Cooling System Small Storage Unit Advanced Weight Redist. System Heavy Armor Plating Improved Hacking Suite Authchip [R/Combat] Authchip [R/Combat] Authchip [R/Combat] Authchip [R/Combat] Authchip [R/Combat] Authchip [Power] Authchip [Propulsion] Authchip [Armor] Heavy Laser Heavy Assault Rifle Improved Remote Datajack Plasma Cutter Power Maul [Rating: 112] Favorites ----------- Power Enhanced Fission Core Engine Light Ion Engine Power Core Enhanced Fission Core Reactor Antimatter Reactor Propulsion Armored Wheel Treads Medium Treads Leg Carbon-fiber Leg Wheel Armored Wheel Flight Unit Cesium-ion Thruster Utility Huge Storage Unit Device Advanced Heat Sink Storage Huge Storage Unit Processor Spectral Analyzer Hackware Makeshift Hacking Suite Protection Improved Light Armor Plating Weapon Enhanced Force Rifle Energy Gun Enhanced Force Rifle Energy Cannon Powered Cannon Ballistic Gun Barrage Gun Special Weapon Mining Laser Impact Weapon Power Maul Piercing Weapon Makeshift Spear Build | -11 -10 -10 -7 -7 -5 -5 -5 -5 -4 -4 -4 -4 ------- Run | Yrd Mat Sub Rec Scr Fac Upp Upp War Pro Fac Was Fac Slots Evolved 12 | . . . . . 10 . . . . 2 . . Power . | . . . . . . . . . . . . . Propulsion 3 | . . . . . 2 . . . . 1 . . Utility 4 | . . . . . 3 . . . . 1 . . Weapon 5 | . . . . . 5 . . . . . . . Parts Attached 102 | 7 14 7 3 . 21 4 6 17 3 19 . 1 Power 8 | 1 1 1 . . 3 . . . 1 1 . . Engine 4 | 1 1 1 . . 1 . . . . . . . Core 3 | . . . . . 2 . . . . 1 . . Reactor 1 | . . . . . . . . . 1 . . . Propulsion 31 | 2 5 1 1 . 7 1 2 3 . 9 . . Treads 8 | . . . . . 2 1 2 3 . . . . Leg 4 | . . . . . 4 . . . . . . . Wheel 10 | 2 5 1 1 . 1 . . . . . . . Hover . | . . . . . . . . . . . . . Flight 9 | . . . . . . . . . . 9 . . Utility 28 | 2 3 1 2 . 6 . 2 4 1 7 . . Device 14 | 1 1 1 1 . 5 . . 3 1 1 . . Storage 4 | 1 2 . . . . . . . . 1 . . Processor 1 | . . . . . 1 . . . . . . . Hackware 5 | . . . . . . . . . . 5 . . Protection 4 | . . . 1 . . . 2 1 . . . . Artifact . | . . . . . . . . . . . . . Weapon 35 | 2 5 4 . . 5 3 2 10 1 2 . 1 Energy Gun 15 | . 3 . . . 3 2 2 3 1 . . 1 Energy Cannon 6 | . 2 2 . . . . . 2 . . . . Ballistic Gun 10 | 2 . . . . 2 1 . 5 . . . . Ballistic Cannon . | . . . . . . . . . . . . . Launcher . | . . . . . . . . . . . . . Special Weapon 2 | . . 1 . . . . . . . 1 . . Impact Weapon 1 | . . . . . . . . . . 1 . . Slashing Weapon . | . . . . . . . . . . . . . Piercing Weapon 1 | . . 1 . . . . . . . . . . Special Melee Weapon . | . . . . . . . . . . . . . Unidentified Prototypes 5 | . 1 . . . 2 . . 2 . . . . Corrupted Parts 2 | . . . . . . . . . 1 1 . . System Corruption 9 | . . . . . . . . . 5 4 . . Parts Lost 29 | . . 7 . . 1 4 9 1 1 3 . 3 Power 1 | . . 1 . . . . . . . . . . Propulsion 13 | . . 3 . . 1 1 2 . . 3 . 3 Utility 5 | . . 1 . . . 1 1 1 1 . . . Weapon 10 | . . 2 . . . 2 6 . . . . . Highest Loss Streak 4 | . . 3 . . 1 2 4 1 1 3 . 3 To Critical Strikes . | . . . . . . . . . . . . . Average Backups 21 | 1 13 22 24 21 23 23 23 24 25 9 8 7 Power 2 | . 1 3 2 1 2 3 3 2 2 1 1 . Propulsion 4 | . 4 8 4 2 3 2 2 2 6 . 1 . Utility 11 | . 4 7 14 15 14 13 14 13 12 4 3 3 Weapon 2 | . 2 3 3 1 1 2 2 2 3 2 . . Tool/Special . | . . . . . . . . . . . . . Unused Backups 52 | 1 3 2 3 11 10 . 1 9 . 5 . 7 Power 9 | . . . 1 2 3 . 1 1 . 1 . . Propulsion 10 | . 2 2 1 3 1 . . . . 1 . . Utility 22 | . . . 1 2 5 . . 8 . 2 . 4 Weapon 7 | 1 1 . . 4 1 . . . . . . . Tool/Special 4 | . . . . . . . . . . 1 . 3 Average Slot Usage (%) 85 | . 99 98 74 73 66 93 76 92 89 66 73 70 Engine 7 | . 13 13 12 12 2 . . . . . . . Core 2 | . . . . . 5 11 5 5 2 4 5 5 Treads 6 | . . . . . 5 15 16 17 17 1 . . Wheel 17 | . 27 27 24 25 13 5 5 5 5 . . . Flight 1 | . . . . . . . . . . 22 26 24 Device 8 | . 9 13 6 . 5 15 12 10 16 4 5 5 Storage 9 | . 18 13 12 10 5 5 5 5 5 5 5 5 Processor 1 | . . . . . 4 5 5 4 . . . . Protection 3 | . . . 5 12 5 . . 5 . . . . Energy Gun 12 | . 10 21 . . 5 20 17 15 23 2 . 1 Energy Cannon 5 | . 12 2 12 12 5 4 . 4 6 . . . Ballistic Gun 3 | . 4 . . . 3 6 3 12 5 2 5 . Peak Build Rating 112 | 7 14 22 28 30 97 112 92 107 98 83 64 71 Average Rating 47 | 5 10 15 26 27 67 106 75 84 90 57 64 63 On Entrance 50 | . 7 14 22 28 29 97 91 63 98 79 64 64 Avg Prop Armor Cover (%) 11 | . . . . . 8 3 11 14 18 20 . . Naked Turns . | . . . . . . . . . . . . . Heaviest Build 156 | 12 92 93 95 95 141 141 122 156 155 125 32 34 Greatest Support 86 | 26 32 24 28 28 48 86 86 12 12 37 41 36 Greatest Overweight (x) 12 | . 3 7 3 3 5 5 9 12 12 10 . . Average Overweight (x) 3 | . . 3 3 2 2 1 4 10 11 . . . Largest Inventory Capacity 25 | 8 25 25 25 25 25 25 25 25 25 25 8 8 Average Capacity 23 | 7 16 25 25 22 25 25 25 25 25 10 8 8 Most Carried 25 | 5 15 25 25 25 25 25 25 25 25 25 8 8 Average Carried 21 | 1 13 22 24 22 24 24 24 24 25 9 8 7 Final Capacity 25 | 8 25 25 25 25 25 25 25 25 25 8 8 8 Final Carried 25 | 5 15 23 25 24 25 25 25 25 25 8 8 8 Class Distribution -------------------- 57% | Mutant 24% | Scavenger-Executioner 5% | Scavenger-Mutant 4% | Executioner Dominant Class ---------------- Mutant | -10/Materials Mutant | -10/Subcaves Mutant | -7/Recycling Mutant | -7/Scraptown Mutant | -5/Factory Scavenger-Executioner | -5/Upper Caves Scavenger-Mutant | -5/Upper Caves Scavenger-Executioner | -5/Warlord Scavenger-Executioner | -4/Proximity Caves Hacker-Sprinter | -4/Factory Hacker-Sprinter | -4/Waste Hacker-Sprinter | -4/Factory Resources | -11 -10 -10 -7 -7 -5 -5 -5 -5 -4 -4 -4 -4 ----------- Run | Yrd Mat Sub Rec Scr Fac Upp Upp War Pro Fac Was Fac Matter Collected 2972 | 322 179 534 238 357 379 120 207 199 51 362 . 24 Remotely . | . . . . . . . . . . . . . Salvage Created 4426 | 96 223 388 119 . 1100 248 1196 386 101 569 . . Parts 187 | 8 16 27 6 . 41 8 49 12 8 12 . . Haulers Intercepted 5 | . 2 . . . 2 . . . . 1 . . Recyclers Shooed 3 | . 1 . 1 . 1 . . . . . . . Parts Field Recycled . | . . . . . . . . . . . . . Retrieved Matter . | . . . . . . . . . . . . . Parts Self-Destructed 80 | . . 4 . . . 7 54 . 15 . . . Prevented 3 | . . . . . . . 3 . . . . . Parts Restored . | . . . . . . . . . . . . . Kills | -11 -10 -10 -7 -7 -5 -5 -5 -5 -4 -4 -4 -4 ------- Run | Yrd Mat Sub Rec Scr Fac Upp Upp War Pro Fac Was Fac Combat Hostiles Destroyed 67 | . 3 9 1 . 9 4 21 10 5 5 . . Melee 1 | . . . . . . 1 . . . . . . Guns 46 | . 2 7 . . 3 3 20 3 3 5 . . Cannons 16 | . 1 2 1 . 5 . . 6 1 . . . AOE 1 | . . . . . . . . 1 . . . . Classes Destroyed 18 | 2 3 3 . . 5 . 2 3 . . . . Worker 4 | . . . . . 2 . . . . 2 . . Builder 4 | . . . . . 2 . . . . 2 . . Tunneler 4 | 3 . . . . . . . . . 1 . . Hauler 5 | . 2 . . . 2 . . . . 1 . . Recycler 7 | 1 1 . 1 . 2 . . . . 2 . . Mechanic 1 | . . . . . 1 . . . . . . . Swarmer 18 | . 2 . . . . . 9 . 3 4 . . Grunt 18 | . 1 . . . 6 1 6 4 . . . . Brawler 3 | . . . . . . . 3 . . . . . Duelist 2 | . . . . . . . 2 . . . . . Sentry 4 | . . 1 1 . . 1 1 . . . . . Specialist 1 | . . . . . . . . 1 . . . . Hunter 1 | . . . . . 1 . . . . . . . Programmer 8 | . . . . . 2 2 . 1 2 1 . . Behemoth 1 | . . . . . . . . 1 . . . . Executioner 3 | . . . . . . . . 3 . . . . Artisan 2 | . . 2 . . . . . . . . . . Subdweller 8 | . . 8 . . . . . . . . . . Best Kill Streak 9 | 4 2 2 1 . 9 2 8 5 3 6 . . Combat Bots Only 8 | . 2 2 1 . 4 2 8 5 3 4 . . Max Kills in Single Turn 3 | 1 1 1 1 . 2 1 3 1 1 1 . . Gunslinging 2 | . . . . . . . 2 . . . . . Exploded 1 | . . . . . . . . 1 . . . . Melee 1 | . . . . . . 1 . . . . . . Uniques/NPCs Destroyed . | . . . . . . . . . . . . . Combat | -11 -10 -10 -7 -7 -5 -5 -5 -5 -4 -4 -4 -4 -------- Run | Yrd Mat Sub Rec Scr Fac Upp Upp War Pro Fac Was Fac Hostile Shots Fired 358 | . 20 48 9 . 54 40 66 24 31 24 . 42 Missed 99 | . 7 9 3 . 13 7 19 6 14 4 . 17 Hits 259 | . 13 39 6 . 41 33 47 18 17 20 . 25 Melee 9 | . . . . . . . 9 . . . . . Projectile 250 | . 13 39 6 . 41 33 38 18 17 20 . 25 Critical Strikes 18 | . 1 1 . . 7 3 4 1 . 1 . . Part Disruptions 1 | . . . . . 1 . . . . . . . Damage Taken 5310 | . 111 999 50 . 796 653 1031 496 225 435 . 514 Core 719 | . 38 130 21 . 141 60 15 108 25 77 . 104 Absorbed by Shields 423 | . . . . . . . . 336 87 . . . Regen/Repaired (Parts) 263 | . . . . . . . . 243 . . . 20 Core Remaining (%) 63 | 100 . . . 24 . . . . 65 . . . Volleys Fired 252 | 13 21 82 7 . 42 8 28 13 10 17 . 11 Largest 7 | 2 2 2 1 . 6 6 6 7 7 3 . 1 Hottest 387 | 40 120 156 40 . 324 387 382 365 370 101 . 225 Shots Fired 696 | 26 42 149 8 . 131 48 121 70 57 33 . 11 Gun 522 | 26 22 98 . . 90 40 121 44 42 32 . 7 Cannon 137 | . 20 19 8 . 41 8 . 26 15 . . . Launcher . | . . . . . . . . . . . . . Special 37 | . . 32 . . . . . . . 1 . 4 Kinetic 157 | 26 16 . . . 37 14 30 6 4 24 . . Thermal 439 | . 26 149 8 . 94 34 91 12 18 . . 7 Explosive . | . . . . . . . . . . . . . Electromagnetic . | . . . . . . . . . . . . . Entropic 95 | . . . . . . . . 52 35 8 . . Robot Hit Streak 11 | 3 6 9 10 . 10 8 11 10 6 6 . 5 Robot Miss Streak 6 | 3 3 2 1 . 5 1 3 4 6 3 . . Penetration Max 1 | . . . . . . . . 1 . . . . Secondary Targets 12 | . 1 1 . . . . 10 . . . . . Max Gunslinging Chain 2 | . 1 1 . . . . 2 . . . . . Shots Hit Robots 343 | 13 24 52 5 . 68 17 81 32 20 27 . 4 Core Hits 143 | 6 7 21 2 . 21 8 34 17 8 11 . 8 Critical Kills 9 | . . . . . 4 . 4 1 . . . . Critical Parts Destroyed 13 | . . . . . 1 1 3 3 1 4 . . Critical Strikes 42 | . 1 5 . . 8 1 9 10 4 4 . . Burn 11 | . 1 5 . . 3 . 2 . . . . . Meltdown 3 | . . . . . 3 . . . . . . . Destroy 13 | . . . . . 2 1 7 2 1 . . . Smash 3 | . . . . . . . . . . 3 . . Detonate 3 | . . . . . . . . 2 . 1 . . Sunder 9 | . . . . . . . . 6 3 . . . Melee Attacks 19 | . . 7 . . . . . . . 11 . 1 Impact 12 | . . . . . . . . . . 11 . 1 Slashing . | . . . . . . . . . . . . . Piercing 7 | . . 7 . . . . . . . . . . Sneak Attacks 6 | . . . . . . . . . . 6 . . Combat Hostiles . | . . . . . . . . . . . . . Follow-up Attacks . | . . . . . . . . . . . . . Damage Inflicted 11014 | 155 370 916 292 . 2510 511 1800 2098 758 1373 . 231 Guns 6224 | 155 142 790 . . 1131 334 1800 850 477 521 . 24 Cannons 3463 | . 228 121 292 . 1379 158 . 1004 281 . . . Explosions 564 | . . . . . . . . 244 . 113 . 207 Melee 739 | . . . . . . . . . . 739 . . Ramming 24 | . . 5 . . . 19 . . . . . . Kinetic 1190 | 155 56 . . . 375 67 192 19 30 296 . . Thermal 6488 | . 314 911 292 . 2135 425 1608 467 214 98 . 24 Explosive . | . . . . . . . . . . . . . Electromagnetic 222 | . . . . . . . . . . 15 . 207 Impact 739 | . . . . . . . . . . 739 . . Slashing . | . . . . . . . . . . . . . Piercing . | . . . . . . . . . . . . . Entropic 2351 | . . . . . . . . 1612 514 225 . . Highest Corruption 16 | . . 14 14 . 2 4 16 16 14 5 5 5 Average Corruption 7 | . . 14 14 . 1 3 8 12 9 3 5 5 Corruption Purged . | . . . . . . . . . . . . . Corruption Blocked . | . . . . . . . . . . . . . Effects 85 | . . 2 21 . 7 10 24 6 9 4 . 2 Message Errors 17 | . . 1 1 . 2 4 2 3 2 1 . 1 Matter Fused 18 | . . . 5 . 1 1 7 . 2 2 . . Heat Flow Errors 15 | . . . 3 . 2 1 5 1 2 . . 1 Energy Discharges 11 | . . . 2 . . 2 3 2 1 1 . . Parts Fused 3 | . . . 2 . . 1 . . . . . . Data Loss (minor) 11 | . . 1 4 . 1 1 3 . 1 . . . Data Loss (major) 4 | . . . 2 . . . 2 . . . . . Misfires 3 | . . . 1 . . . 1 . 1 . . . Alerts 1 | . . . 1 . . . . . . . . . Weapon Failures 2 | . . . . . 1 . 1 . . . . . Overload Shots 1 | . . . . . . . . . . . . 1 Overflow Damage 881 | . . . 72 . 191 21 . 30 . 567 . . Projectiles 314 | . . . 72 . 191 21 . 30 . . . . Explosions 9 | . . . . . . . . . . 9 . . Melee 558 | . . . . . . . . . . 558 . . Knockbacks 4 | . . . . . . . . . . 4 . . Impact 4 | . . . . . . . . . . 4 . . Kinetic . | . . . . . . . . . . . . . Secondary . | . . . . . . . . . . . . . Self-Inflicted Damage 9 | . . 2 . . . . . . . 7 . . Shots 1 | . . . . . . . . . . 1 . . Rammed 3 | . . 2 . . . 1 . . . . . . Targets Rammed 4 | . . 2 . . . 2 . . . . . . Kicked . | . . . . . . . . . . . . . Crushed 1 | . . . . . . 1 . . . . . . Highest Temperature 343 | . 300 54 175 . 306 312 234 288 142 108 110 343 Average Temperature 91 | . 95 29 59 . 99 125 114 117 58 37 72 98 Received Heat Transfer 1274 | . 12 123 18 . 279 256 234 238 . 9 . 105 Effects 5 | . 1 . . . 1 3 . . . . . . Interference 4 | . 1 . . . . 3 . . . . . . Short Circuit 1 | . . . . . 1 . . . . . . . Siege Activations . | . . . . . . . . . . . . . Martial Activations . | . . . . . . . . . . . . . Shielding Activations . | . . . . . . . . . . . . . Robots Disrupted . | . . . . . . . . . . . . . Combat Hostiles . | . . . . . . . . . . . . . Robots Corrupted 5 | . . . . . . . . . . 5 . . Combat Hostiles . | . . . . . . . . . . . . . Parts Fried 6 | . . . . . . . . . . 6 . . Impact Corruptions 18 | . . . . . . . . . . 18 . . Robots Melted 5 | . . . . . 3 . 1 . 1 . . . Combat Hostiles 3 | . . . . . 1 . 1 . 1 . . . Parts Melted 21 | . 1 2 . . 2 4 10 1 1 . . . Heat Transferred 8635 | . 740 2331 . . 1369 370 2783 620 335 50 . 37 Parts Sabotaged . | . . . . . . . . . . . . . Parts Stolen . | . . . . . . . . . . . . . Parts Stripped . | . . . . . . . . . . . . . Power Chain Reactions . | . . . . . . . . . . . . . Alert | -11 -10 -10 -7 -7 -5 -5 -5 -5 -4 -4 -4 -4 ------- Run | Yrd Mat Sub Rec Scr Fac Upp Upp War Pro Fac Was Fac Maximum Alert Level 1 | . . . . . 1 . . . . 1 . . Low Security (%) 96 | 100 100 . 100 . 91 . . . . 93 100 100 Level 1 3 | . . . . . 8 . . . . 6 . . Level 2 . | . . . . . . . . . . . . . Level 3 . | . . . . . . . . . . . . . Level 4 . | . . . . . . . . . . . . . Level 5 . | . . . . . . . . . . . . . High Security . | . . . . . . . . . . . . . Max Security . | . . . . . . . . . . . . . Peak Influence 308 | 10 50 . 80 . 308 . . . . 204 . 15 Initial . | . . . . . . . . . . . . . Average 42 | 1 4 . 24 . 68 . . . . 112 . 1 Influence Increases 2501 | 20 97 20 177 . 514 90 543 452 212 344 . 32 Destroy 0b10 Robot/C 1440 | . 60 20 20 . 180 80 460 360 160 100 . . Destroy 0b10 Robot/NC 125 | 20 15 . 5 . 45 . . . . 40 . . Destroy Leader 160 | . 14 . . . 54 10 30 . 30 22 . . Allied During Kill 122 | . . . . . . . 8 92 22 . . . Successful Hack 67 | . 8 . . . 36 . . . . 23 . . Select Force Hacks 150 | . . . 150 . . . . . . . . . Disable Machine 75 | . . . . . . . . . . 60 . 15 Anti-Garrison Action 150 | . . . . . 150 . . . . . . . Destroy Structure 62 | . . . 2 . 34 . . . . 24 . 2 Partial Spotted 45 | . . . . . . . . . . 30 . 15 Lose Combat Pursuer 105 | . . . . . 15 . 45 . . 45 . . Influence Decreases 2486 | 20 97 20 177 . 222 362 344 294 589 344 . 17 Entered New Map 709 | . . . . . . 109 4 219 377 . . . Time Decay 1348 | 20 97 6 177 . 212 223 210 45 182 164 . 12 Lost Part 199 | . . 14 . . 10 30 90 10 10 30 . 5 Lost Ally 80 | . . . . . . . 40 20 20 . . . Purge Threat 150 | . . . . . . . . . . 150 . . Squads Dispatched 11 | . . . . . 6 . 1 . . 3 . 1 Investigation 1 | . . . . . . . . . . 1 . . Extermination 1 | . . . . . 1 . . . . . . . Reinforcement 6 | . . . . . 3 . . . . 2 . 1 Assault 3 | . . . . . 2 . 1 . . . . . Garrison . | . . . . . . . . . . . . . Intercept . | . . . . . . . . . . . . . Searches Triggered . | . . . . . . . . . . . . . Construction Impeded 2 | . . . . . 1 . . . . 1 . . Haulers Reinforced 1 | . . . . . 1 . . . . . . . Active Scanning Responses . | . . . . . . . . . . . . . Cargo Convoy Interrupts . | . . . . . . . . . . . . . Stealth | -11 -10 -10 -7 -7 -5 -5 -5 -5 -4 -4 -4 -4 --------- Run | Yrd Mat Sub Rec Scr Fac Upp Upp War Pro Fac Was Fac Distress Signals 7 | . 1 . . . . . . 6 . . . . Communications Jammed . | . . . . . . . . . . . . . Distress Signals . | . . . . . . . . . . . . . Times Spotted 140 | . 9 16 1 . 18 8 24 34 8 10 4 8 Peak Tracking Total 10 | . 3 6 1 . 5 5 9 10 5 6 4 7 Tactical Retreats 7 | . . 1 . . 1 . 3 . . 2 . . Traps | -11 -10 -10 -7 -7 -5 -5 -5 -5 -4 -4 -4 -4 ------- Run | Yrd Mat Sub Rec Scr Fac Upp Upp War Pro Fac Was Fac Traps Triggered 7 | . 1 2 . . 1 . . . . 3 . . Indirectly . | . . . . . . . . . . . . . Trap Hack Attempts . | . . . . . . . . . . . . . Triggered . | . . . . . . . . . . . . . Disarmed . | . . . . . . . . . . . . . Reprogrammed . | . . . . . . . . . . . . . Reused . | . . . . . . . . . . . . . Traps Extracted . | . . . . . . . . . . . . . Installed . | . . . . . . . . . . . . . Triggered . | . . . . . . . . . . . . . Machines | -11 -10 -10 -7 -7 -5 -5 -5 -5 -4 -4 -4 -4 ---------- Run | Yrd Mat Sub Rec Scr Fac Upp Upp War Pro Fac Was Fac Machines Disabled 9 | . 1 1 . . 1 . . 1 . 4 . 1 Max in Single Turn 2 | . 1 1 . . 1 . . 1 . 2 . 1 Garrison Access 2 | . . . . . 1 . . . . 1 . . Machines Repaired . | . . . . . . . . . . . . . Machines Dismantled . | . . . . . . . . . . . . . Machines Sabotaged . | . . . . . . . . . . . . . Overloaded Fab Kills . | . . . . . . . . . . . . . Hacking | -11 -10 -10 -7 -7 -5 -5 -5 -5 -4 -4 -4 -4 --------- Run | Yrd Mat Sub Rec Scr Fac Upp Upp War Pro Fac Was Fac Machines Accessed 31 | . 4 2 6 3 4 1 . 2 . 7 . 2 Terminals 11 | . 3 . 1 . 2 . . . . 4 . 1 Fabricators 2 | . . . . . . . . . . 2 . . Repair Stations 3 | . 1 . . . 1 . . . . . . 1 Recycling Units 5 | . . . 5 . . . . . . . . . Scanalyzers 1 | . . . . . 1 . . . . . . . Garrison Access 1 | . . . . . . . . . . 1 . . Total Hacks 88 | . 10 6 6 24 8 1 . 3 . 20 . 10 Successful 71 | . 7 6 5 24 3 1 . 3 . 15 . 7 Failed 14 | . 2 . 1 . 5 . . . . 4 . 2 Catastrophic 5 | . 1 . 1 . 1 . . . . 2 . . Database Lockouts 3 | . 1 . . . . . . . . 1 . 1 Manual 31 | . 8 . 5 . 3 . . . . 11 . 4 Terminals 36 | . 8 . 1 . 4 . . . . 15 . 8 Fabricators 4 | . . . . . . . . . . 4 . . Repair Stations 5 | . 2 . . . 1 . . . . . . 2 Recycling Units 5 | . . . 5 . . . . . . . . . Scanalyzers 3 | . . . . . 3 . . . . . . . Garrison Access 1 | . . . . . . . . . . 1 . . Terminal Hacks 45 | . 1 6 . 24 . 1 . 3 . 6 . 4 Record 30 | . . 5 . 18 . 1 . 2 . 1 . 3 Part Schematic 4 | . 1 . . . . . . . . 3 . . Robot Analysis 6 | . . . . 6 . . . . . . . . Open Door 1 | . . . . . . . . 1 . . . . Branch Access Points 2 | . . . . . . . . . . 1 . 1 Unreport Threat 1 | . . . . . . . . . . 1 . . Proto ID Catalog 1 | . . 1 . . . . . . . . . . Fabricator Hacks 4 | . . . . . . . . . . 4 . . Load Schematic 2 | . . . . . . . . . . 2 . . Build 2 | . . . . . . . . . . 2 . . Repair Station Hacks 4 | . 2 . . . . . . . . . . 2 Scan Component 2 | . 1 . . . . . . . . . . 1 Repair 2 | . 1 . . . . . . . . . . 1 Recycling Unit Hacks . | . . . . . . . . . . . . . Scanalyzer 1 | . . . . . 1 . . . . . . . Insert Component 1 | . . . . . 1 . . . . . . . Garrison Access Hacks 1 | . . . . . . . . . . 1 . . Seal Access 1 | . . . . . . . . . . 1 . . Unauthorized Hacks 16 | . 4 . 5 . 2 . . . . 4 . 1 Terminals 11 | . 4 . . . 2 . . . . 4 . 1 Botnet 10 | . 3 . . . 2 . . . . 4 . 1 Operators 1 | . 1 . . . . . . . . . . . Fabricators . | . . . . . . . . . . . . . Repair Stations . | . . . . . . . . . . . . . Recycling Units 5 | . . . 5 . . . . . . . . . Tunnel 5 | . . . 5 . . . . . . . . . Scanalyzers . | . . . . . . . . . . . . . Garrison Access . | . . . . . . . . . . . . . Data Cores Recovered . | . . . . . . . . . . . . . Used . | . . . . . . . . . . . . . Hacking Detections 14 | . 3 . 1 . 4 . . . . 5 . 1 Full Trace Events 1 | . . . . . . . . . . 1 . . Feedback Events . | . . . . . . . . . . . . . Feedback Blocked . | . . . . . . . . . . . . . Robot Schematics Acquired . | . . . . . . . . . . . . . Robots Built . | . . . . . . . . . . . . . Authchips . | . . . . . . . . . . . . . Time . | . . . . . . . . . . . . . Total Robot Build Rating . | . . . . . . . . . . . . . Part Schematics Acquired 4 | . 1 . . . . . . . . 3 . . Parts Built 1 | . . . . . . . . . . 1 . . Authchips 1 | . . . . . . . . . . 1 . . Time 140 | . . . . . . . . . . 140 . . Total Part Build Rating 6 | . . . . . . . . . . 6 . . Part Studies Acquired . | . . . . . . . . . . . . . Parts Repaired 2 | . 1 . . . . . . . . . . 1 Time 88 | . 44 . . . . . . . . . . 44 Parts Recycled . | . . . . . . . . . . . . . Recycled Matter . | . . . . . . . . . . . . . Retrieved Matter . | . . . . . . . . . . . . . Retrieved Components . | . . . . . . . . . . . . . Parts Scanalyzed 1 | . . . . . 1 . . . . . . . Part Schematics Acquired . | . . . . . . . . . . . . . Parts Damaged 1 | . . . . . 1 . . . . . . . Bothacking | -11 -10 -10 -7 -7 -5 -5 -5 -5 -4 -4 -4 -4 ------------ Run | Yrd Mat Sub Rec Scr Fac Upp Upp War Pro Fac Was Fac Used RIF Installer . | . . . . . . . . . . . . . Robots Hacked 1 | . . . . . . . . . . 1 . . Non-combat 1 | . . . . . . . . . . 1 . . Combat . | . . . . . . . . . . . . . Robot Hacks Applied 1 | . . . . . . . . . . 1 . . find_chute 1 | . . . . . . . . . . 1 . . Relay Couplers Released 1 | . . . . . 1 . . . . . . . Machine Destruction 1 | . . . . . 1 . . . . . . . Fabnet Peak Effective % . | . . . . . . . . . . . . . Robots Rewired 7 | . . . . . . . 2 5 . . . . Allies Hacked . | . . . . . . . . . . . . . Hacks Repelled . | . . . . . . . . . . . . . Allies | -11 -10 -10 -7 -7 -5 -5 -5 -5 -4 -4 -4 -4 -------- Run | Yrd Mat Sub Rec Scr Fac Upp Upp War Pro Fac Was Fac Total Allies 7 | . . . . . . . 2 5 . . . . Largest Group 5 | . . . . . . . 2 5 3 2 . . Highest-Rated Group 286 | . . . . . . . 60 286 196 128 . . Highest-Rated Ally 68 | . . . . . . . 30 68 68 64 . . Initial UFD Resources 40 | . . . . . 37 37 37 37 40 40 40 40 Total Orders 1 | . . . . . . . . . . 1 . . STAY 1 | . . . . . . . . . . 1 . . Ally Attacks 24 | . . . . . . . 5 16 3 . . . Total Damage 1376 | . . . . . . . 112 1039 225 . . . Kills 14 | . . . . . . . 2 9 3 . . . Allies Corrupted . | . . . . . . . . . . . . . Allies Melted 3 | . . . . . . . 1 2 . . . . Intel | -11 -10 -10 -7 -7 -5 -5 -5 -5 -4 -4 -4 -4 ------- Run | Yrd Mat Sub Rec Scr Fac Upp Upp War Pro Fac Was Fac Active Infowar (turns) 7335 | 41 506 2505 301 . 823 580 748 1831 . . . . Optics 4101 | . . 119 . . 823 580 748 1831 . . . . Seismic 3234 | 41 506 2386 301 . . . . . . . . . Robot Analysis Total 6 | . . . . 6 . . . . . . . . Derelict Logs Recovered 9 | . . 2 . 5 . 2 . . . . . . Drone Launches . | . . . . . . . . . . . . . Drone Recoveries . | . . . . . . . . . . . . . Exploration | -11 -10 -10 -7 -7 -5 -5 -5 -5 -4 -4 -4 -4 ------------- Run | Yrd Mat Sub Rec Scr Fac Upp Upp War Pro Fac Was Fac Turns Passed 10976 | 112 772 2645 582 1826 852 596 748 1905 403 407 11 117 Spaces Moved 6606 | 69 490 1606 387 1341 473 241 257 711 140 622 59 210 Core 6 | 6 . . . . . . . . . . . . Treads 350 | . . . . . . 203 147 . . . . . Legs . | . . . . . . . . . . . . . Wheels 5369 | 63 490 1606 387 1341 473 38 110 711 140 10 . . Hover . | . . . . . . . . . . . . . Flight 881 | . . . . . . . . . . 612 59 210 Fastest Speed 14 | 50 90 135 140 95 126 155 210 225 240 22 14 22 Average Speed 140 | 85 109 135 140 133 139 228 228 245 258 34 18 22 Slowest Speed 270 | 90 135 195 140 140 170 240 240 270 270 240 22 24 Overloaded Moves 26 | . . . . . . . . . . . 26 . Propulsion Burnouts . | . . . . . . . . . . . . . Robots Hopped 6 | . . . . . . . . . . 3 . 3 Potential Cave-ins 11 | . . 9 . . . . . . . 2 . . Cave-ins Triggered 2 | . . 1 . . . . . 1 . . . . Exploration Rate (%) 44 | 4 63 69 41 81 16 50 40 88 38 16 70 7 Regions Visited 12 Branch Regions 7 Pre-discovered Areas 12 | . . 3 5 4 . . . . . . . . Known Exits Taken 6 | . . 1 . . 1 1 1 1 1 . . . Unknown Exits Taken 4 | 1 1 . 1 1 . . . . . . . . Scrap Searched 10 | . . 3 . 3 . 3 1 . . . . . Spaces Dug 18 | . . 7 . . 1 2 . . 3 4 . 1 Terrain Destroyed 129 | . . 8 2 . 14 6 . 40 40 18 . 1 Melee 10 | . . 5 . . . . . . . 4 . 1 Projectile 114 | . . 3 2 . 14 6 . 37 40 12 . . AOE 5 | . . . . . . . . 3 . 2 . . Terrain Rammed . | . . . . . . . . . . . . . Walls Destroyed . | . . . . . . . . . . . . . Machines Disabled . | . . . . . . . . . . . . . Actions | -11 -10 -10 -7 -7 -5 -5 -5 -5 -4 -4 -4 -4 --------- Run | Yrd Mat Sub Rec Scr Fac Upp Upp War Pro Fac Was Fac Total 7745 | 95 693 1845 424 1389 595 263 350 840 153 772 58 268 Wait 371 | . 127 92 12 . 10 3 12 13 . 65 . 37 Move 6583 | 68 489 1605 386 1340 472 240 256 710 139 616 58 204 Hop 6 | . . . . . . . . . . 3 . 3 Pick Up 128 | 6 19 16 10 31 19 4 2 15 . 3 . 3 Fast Attach 42 | 7 6 . . 1 10 . 6 5 2 4 . 1 Attach 28 | . 1 8 2 . 3 3 1 . . 9 . 1 Detach 14 | . 1 3 . . 1 . . . . 7 . 2 Swap 82 | . 11 26 1 . 10 2 . 13 1 17 . 1 Drop 111 | 1 18 4 6 14 20 1 1 21 1 20 . 4 Fire 252 | 13 21 82 7 . 42 8 28 13 10 17 . 11 Melee 19 | . . 7 . . . . . . . 11 . 1 Ram 1 | . . 1 . . . . . . . . . . Kick . | . . . . . . . . . . . . . Crush 2 | . . . . . . 2 . . . . . . Escape Stasis 9 | . . 1 . . 8 . . . . . . . Rewire 97 | . . . . 3 . . 44 50 . . . . Trap . | . . . . . . . . . . . . . Miscellaneous . | . . . . . . . . . . . . . Route ------- -11/Scrapyard -10/Materials (discovered 4 exits: [*Mat] / [*Min x2] / *Sub) -10/Subcaves -7/Recycling -7/Scraptown -5/Factory (discovered 2 exits: *Upp x2) -5/Upper Caves -5/Upper Caves -5/Warlord -4/Proximity Caves -4/Factory (discovered 3 exits: Upp x2 / Arm) -4/Waste -4/Factory (discovered 3 exits: Upp x2 / Arm) History --------- Turn | Location | Event 13 | -11/Scrapyard | Discovered new exit (range 16) 113 | -11/Scrapyard | Entered Materials 119 | -10/Materials | Discovered new exit (range 15) 303 | -10/Materials | Build established: Mutant 379 | -10/Materials | Discovered new exit (range 8) 564 | -10/Materials | Central database locked down 693 | -10/Materials | Repaired Broken Arm. Wheel 865 | -10/Materials | Discovered new exit (range 11) 873 | -10/Materials | Discovered new exit (range 9) 885 | -10/Materials | Entered Subcaves 1193 | -10/Subcaves | Learned location of Zion (-7) 1553 | -10/Subcaves | A swath of the cavern ceiling suddenly collapsed 2581 | -10/Subcaves | A swath of the cavern ceiling suddenly collapsed 2826 | -10/Subcaves | Visited Clippyterm 2830 | -10/Subcaves | Identified exit to Recycling 2830 | -10/Subcaves | Learned location of Deep Caves (-7) 2878 | -10/Subcaves | Core integrity fell below 50% 3108 | -10/Subcaves | Visited 4L-MR0's lab 3131 | -10/Subcaves | Found Powered Cannon 3487 | -10/Subcaves | Crushed by falling debris 3488 | -10/Subcaves | System corruption reached 10% 3511 | -10/Subcaves | Attached Powered Cannon, gained temporary slot: Power 3518 | -10/Subcaves | Lost 3 parts (1n1u1w) 3530 | -10/Subcaves | Entered Recycling 3698 | -7/Recycling | Scanned before Scraplab entrance 4098 | -7/Recycling | Entered Scraplab 4109 | -7/Recycling | Discovered new exit (range 3) 4112 | -7/Recycling | Entered Scraptown 4112 | -7/Scraptown | System corruption cleaned by C-Scrubber 4297 | -7/Scraptown | Scanned Subdweller tech in exchange for log data 4300 | -7/Scraptown | Learned location of Armory (-4) 4301 | -7/Scraptown | Learned Research terminal intel 4304 | -7/Scraptown | Learned Research interactive machine intel 4307 | -7/Scraptown | Learned Factory emergency access door positions 4671 | -7/Scraptown | Visited Shadow of the Wyrm 4695 | -7/Scraptown | Visited The Evicted 4714 | -7/Scraptown | Visited Assassins FH 4725 | -7/Scraptown | Visited Cyclists 4765 | -7/Scraptown | Visited CPS Storage 4791 | -7/Scraptown | Visited Awakened 4808 | -7/Scraptown | Visited Fellowship of the Rings 4828 | -7/Scraptown | Visited UFD Registry 4828 | -7/Scraptown | Registered with UFD as "Technoforce" 4885 | -7/Scraptown | Entered Cyclist Reading Room 4986 | -7/Scraptown | Visited Chapter 10 5056 | -7/Scraptown | Visited Infowarlord's Domain 5068 | -7/Scraptown | Found Spectral Analyzer 5140 | -7/Scraptown | Visited Analyses Database 5284 | -7/Scraptown | Visited Science Testing Area 5302 | -7/Scraptown | Visited Scrapoid Pod Storage 5322 | -7/Scraptown | Visited Sword Containment 5337 | -7/Scraptown | Visited Derelict Rescue Squad 5358 | -7/Scraptown | Visited Botcube Research 5381 | -7/Scraptown | Visited Junk Repository 5457 | -7/Scraptown | Visited Cartography Club 5725 | -7/Scraptown | Learned 8 Materials zone layouts 5725 | -7/Scraptown | Learned 12 Research zone layouts 5725 | -7/Scraptown | Learned 16 Research zone layouts 5725 | -7/Scraptown | Learned 8 Access zone layouts 5725 | -7/Scraptown | Learned 4 Mines zone layouts 5725 | -7/Scraptown | Learned 12 Lower Caves zone layouts 5725 | -7/Scraptown | Learned 20 Upper Caves zone layouts 5725 | -7/Scraptown | Learned location of 2 exits from Proximity Caves 5725 | -7/Scraptown | Learned 16 Proximity Caves zone layouts 5725 | -7/Scraptown | Learned location of 3 exits from Proximity Caves 5931 | -7/Scraptown | Discovered new exit (range 5) 5938 | -7/Scraptown | Entered Factory 5938 | -5/Factory | Evolved 10 slots: Propulsion x2, Utility x3, Weapon x5 5939 | -5/Factory | Identified exit to Upper Caves 6790 | -5/Factory | Entered Upper Caves 6791 | -5/Upper Caves | Encountered a Warlord checkpoint 6791 | -5/Upper Caves | Identified exit to Upper Caves 6800 | -5/Upper Caves | Build established: Scavenger-Executioner 6868 | -5/Upper Caves | Attracted the attention of an 0b10 checkpoint 7013 | -5/Upper Caves | Entered a destroyed Warlord outpost 7062 | -5/Upper Caves | Learned Factory terminal intel 7386 | -5/Upper Caves | Entered another Upper Caves area 7387 | -5/Upper Caves | Identified exit to Warlord 7399 | -5/Upper Caves | Encountered a Warlord checkpoint 7498 | -5/Upper Caves | Build established: Executioner 7768 | -5/Upper Caves | Attracted the attention of an 0b10 outpost 7822 | -5/Upper Caves | Lost 3 parts (2n1w) 7824 | -5/Upper Caves | System corruption reached 10% 7849 | -5/Upper Caves | Destroyed 8 combat bots 7856 | -5/Upper Caves | Lost 4 parts (1u3w) 8120 | -5/Upper Caves | Build established: Scavenger-Mutant 8134 | -5/Upper Caves | Entered Warlord 8135 | -5/Warlord | Identified exit to Proximity Caves 8301 | -5/Warlord | System corruption cleaned by Quarantine Array 8976 | -5/Warlord | Build established: Scavenger-Executioner 8997 | -5/Warlord | Rebuked by Warlord 9022 | -5/Warlord | Warlord's base attacked by MAIN.C 9297 | -5/Warlord | Found Prototype Energy Gun 9297 | -5/Warlord | Identified Vortex Rail 9300 | -5/Warlord | Found Vortex Rail 9305 | -5/Warlord | Found Prototype Energy Cannon 9305 | -5/Warlord | Identified Vortex Cannon 9309 | -5/Warlord | Found Vortex Cannon 9372 | -5/Warlord | Warlord forces counterattacked 9697 | -5/Warlord | Warlord base infiltrated, sounded retreat 9745 | -5/Warlord | Spotted Executioner 9746 | -5/Warlord | Destroyed Executioner 9751 | -5/Warlord | Spotted B-86 Titan 9752 | -5/Warlord | Spotted B-75 Beast 9762 | -5/Warlord | Spotted Striker 9774 | -5/Warlord | Allies destroyed Striker 9777 | -5/Warlord | Allies destroyed B-75 Beast 9807 | -5/Warlord | Lost 6 allies 9840 | -5/Warlord | Spotted Executioner 9844 | -5/Warlord | Destroyed Executioner 9877 | -5/Warlord | Spotted Executioner 9892 | -5/Warlord | Destroyed Executioner 9936 | -5/Warlord | Spotted Striker 9937 | -5/Warlord | Spotted Striker 9941 | -5/Warlord | Spotted B-75 Beast 9945 | -5/Warlord | Destroyed B-75 Beast 9949 | -5/Warlord | Spotted Executioner 9965 | -5/Warlord | Crushed by falling debris 10028 | -5/Warlord | Lost 4 allies 10039 | -5/Warlord | Entered Proximity Caves 10039 | -4/Proximity Caves | Accompanied by 3 allies 10040 | -4/Proximity Caves | Identified exit to Factory 10442 | -4/Proximity Caves | Entered Factory 10442 | -4/Factory | Accompanied by 2 allies 10442 | -4/Factory | Evolved 2 slots: Propulsion x1, Utility x1 10443 | -4/Factory | Loaded intel: 26 terminal locations 10615 | -4/Factory | Lost 3 parts (3n) 10629 | -4/Factory | Central database locked down 10729 | -4/Factory | Fabricated Cld. Nuclear Pulse Thruster (x1) 10825 | -4/Factory | Identified exit to Upper Caves 10825 | -4/Factory | Identified exit to Armory 10849 | -4/Factory | Sucked down chute 10849 | -4/Factory | Entered Waste 10851 | -4/Waste | Spotted C-40 Crusher 10857 | -4/Waste | Spotted C-40 Crusher 10857 | -4/Waste | Spotted C-40 Crusher 10857 | -4/Waste | Spotted C-40 Crusher 10858 | -4/Waste | Discovered new exit (range 16) 10858 | -4/Waste | Spotted C-40 Crusher 10860 | -4/Waste | Entered Factory 10903 | -4/Factory | Central database locked down 10948 | -4/Factory | Repaired Broken Plasma Cutter 10977 | -4/Factory | Self-destructed Last Messages --------------- 10939_ K-01 Serf destroyed. 10942_ K-01 Serf collects debris. 10944_ Penetrated by Slug. 10944_ Cesium-ion Thruster destroyed. 10944_ K-01 Serf collects debris. 10947_ Penetrated by Slug. 10947_ K-01 Serf collects debris. 10948_ Repair station completes Broken Plasma Cutter repairs. 10950_ Acquired 24 matter. 10950_ K-01 Serf collects debris. 10950_ Dropped Remote Datajack. 10951_ Acquired Plasma Cutter. 10952_ K-01 Serf collects debris. 10954_ ALERT: Suspicious intruders detected, dispatching Cutter reinforcements to area. 10971_ Cesium-ion Thruster destroyed. 10974_ M-28 Smith repairs G-67 Veteran. 10974_ Adv. Surge Thruster destroyed. 10975_ Neutrino Reactor explodes. 10977_ Penetrated by Slug. Map ----- +----------------------------------------------------+ | ?????????????????????????????????????????????????? | | ?????????????????????????????????????????????????? | | ?????????????????????????????????????????????????? | | ?????????????????????????????????????????????????? | | ????????????????????????????????????????????????? | | ?????????????????????????????????????#+#????????? | | ????????????????????????????????????? ????????? | | ????????????????????????????????????? ????????? | | ?????????????????H??????????????????? ?????????? | | ????????????????????????????????????? ?????##### | | ????????????????????????????????????? |??????!! | | ?????????????????????????????????????# #??????! | | ?????????????????????????????????????# #?????? " | | ????????????????????????############## #?????? " | | ????????????????????????# # #?????? " | | ????????????????????????# # #?????? | | ????????????????????????# """ """ # ########"## | | ????????????????????????# """ """ # | | ????????????????????????# """ """ #Y | | ????????????????????????# kt |""" | | ????????????????????????# """ Y # ^ R" | | ????????????????????????# """ g # = """ | | ????????????????????????# """ m ##### = # | | ????????????????????????# g #?### """ # | | ????????????????????????# g #?#"" """ | | ????????????????????????#@ g #?#"T """ # | | ????????????????????????##############?#"" # | | ?????????????????????????????????????##### # | | ?????????????????????????????????????# | | ?????????????????????????????????????#+########+## | | ??????????????????????????????????????????# | | ??????????????????????????????????????????# | | ??????????????????????????????????????????# | | ??????????????????????????????????????????# """ "" | | ??????????????????????????????????????????# """ "" | | ??????????????????????????????????????????# """ "" | | ??????????????????????????????????????????# | | ??????????????????????????????????????????# | | ???????????????????????????????????????????####### | | ?????????????????????????????????????????????????? | | ?????????????????????????????????????????????????? | | ?????????????????????????????????????????????????? | | ?????????????????????????????????????????????????? | | ?????????????????????????????????????????????????? | | ?????????????????????????????????????????????????? | | ?????????????????????????????????????????????????? | | ?????????????????????????????????????????????????? | | ?????????????????????????????????????????????????? | | ?????????????????????????????????????????????????? | | ?????????????????????????????????????????????????? | +----------------------------------------------------+ Best States ------------- Heat Dissipation 124 Coolant Potential 80 Energy Generation 37 Energy Capacity 600 Matter Stores 300 Matter Capacity 300 Sight Range 24 Terrain Scan Density 10 Additional Mass Support 9 Armor Coverage 450 Evasion (%) 65 Recoil Reduction 3 Offensive Hacking 34 Defensive Hacking 11 Authchip Count 8 Item Schematics ----------------- Huge Storage Unit | -10/Materials | Hacked Cld. Nuclear Pulse Thruster | -4/Factory | Hacked Structural Scanner | -4/Factory | Hacked Imp. Terrain Scanner | -4/Factory | Hacked Robot Schematics ------------------ None Fabricated ------------ Cld. Nuclear Pulse Thruster | x1 | -4/Factory | Authchip Repaired ---------- Arm. Wheel | 99% | -10/Materials | Broken Plasma Cutter | 33% | -4/Factory | Broken Studied --------- None Alien Tech Used ----------------- None Achievements -------------- None Challenges ------------ None Game ------ Seed DrainedMassRifle Manual? 0 Play Time 01:16:46 Cumulative 160.1 hours Start 2026.06.17 @ 19:34:50 End 2026.06.17 @ 20:57:15 Sessions 1 Manual Loads 0 Difficulty Rogue Special Mode None Game No. 301 Rogue 301 Adventurer 0 Explorer 0 Win Type - Total 4 Types 3/0/0/1/0/0/0/0/0/0 Lore% 67 Gallery% 48 Achievement% 45 Wizard Run 0 Options --------- Layout 0 ASCII 0 Keyboard 1 Movement Arrows Keybinds 0 Fullscreen 1 Font 18/Smallcaps Map View 76x50 Zoom Use 21% Tactical HUD 1 Map Filters NONE Filters NONE Steam 1 RUN: 211f19e7-c302-4567-bacd-b8df37d954cf